bitfinex-derivatives/quotes_BTCF0:USTF0_20240910
["timestamp","ask_amount","ask_price","bid_price","bid_amount"]
[1725974902945,0.01,56908.0,56906.0,0.087859]
[1725974903647,0.087855,56909.0,56907.0,0.087858]
[1725974903950,0.100855,56909.0,56907.0,0.087858]
[1725974904352,0.113855,56909.0,56907.0,0.087858]
[1725974905051,0.027,56909.0,56908.0,0.087856]
[1725974905438,0.014,56909.0,56908.0,0.087856]
[1725974906142,0.259,56910.0,56908.0,0.087856]
[1725974906343,0.028,56909.0,56908.0,0.087856]
[1725974907950,0.014,56909.0,56908.0,0.087856]
[1725974908361,0.028,56910.0,56909.0,0.087855]
[1725974908545,0.014,56910.0,56909.0,0.087855]
[1725974908848,0.014,56910.0,56909.0,0.33571]
[1725974909251,0.1027,56918.0,56917.0,0.087842]
[1725974909446,0.0986,56918.0,56917.0,0.087842]
[1725974909850,0.0939,56924.0,56916.0,0.16]
[1725974910048,0.0919,56925.0,56924.0,0.087832]
[1725974910258,0.0919,56925.0,56924.0,0.247832]
[1725974910647,0.0939,56931.0,56929.0,0.087823]
[1725974910955,0.0919,56933.0,56930.0,0.087822]
[1725974911550,0.0919,56933.0,56928.0,0.16]
[1725974912351,0.1059,56933.0,56928.0,0.16]
[1725974912658,0.1059,56933.0,56930.0,0.087821]
[1725974912854,0.1059,56933.0,56932.0,0.16]
[1725974913353,0.1059,56933.0,56932.0,0.247819]
[1725974913552,0.1179,56933.0,56932.0,0.247819]
[1725974914057,0.1039,56933.0,56932.0,0.247819]
[1725974914256,0.1169,56933.0,56932.0,0.247819]
[1725974914559,0.025,56933.0,56932.0,0.247819]
[1725974914748,0.026,56933.0,56932.0,0.247819]
[1725974915843,0.026,56933.0,56930.0,0.02331775]
[1725974916047,0.026,56933.0,56930.0,0.087822]
[1725974916250,0.014,56933.0,56930.0,0.087822]
[1725974916451,0.028,56933.0,56930.0,0.087822]
[1725974917157,0.028,56933.0,56931.0,0.08782]
[1725974917849,0.028,56933.0,56932.0,0.087819]
[1725974918449,0.014,56933.0,56932.0,0.087819]
[1725974918644,0.028,56933.0,56932.0,0.087819]
[1725974918846,0.028,56933.0,56932.0,0.247819]
[1725974926459,0.028,56933.0,56932.0,0.16]
[1725974926661,0.028,56933.0,56929.0,0.02324385]
[1725974926857,0.028,56933.0,56920.0,0.16]
[1725974926858,0.087827,56927.0,56920.0,0.16]
[1725974927064,0.1855,56926.0,56921.0,0.087835]
[1725974927365,0.1855,56926.0,56920.0,0.16]
[1725974927366,0.08783,56925.0,56920.0,0.16]
[1725974927758,0.1855,56926.0,56923.0,0.087832]
[1725974928557,0.1855,56926.0,56924.0,0.087831]
[1725974928765,0.004,56925.0,56924.0,0.087831]
[1725974929254,0.10343831,56937.0,56931.0,0.08782]
[1725974929461,0.0929,56932.0,56931.0,0.247821]
[1725974930464,0.087807,56940.0,56937.0,0.087811]
[1725974930665,0.0929,56938.0,56937.0,0.087811]
[1725974930862,0.0929,56938.0,56936.0,0.16]
[1725974932069,0.0929,56938.0,56937.0,0.087811]
[1725974932262,0.1069,56938.0,56937.0,0.087811]
[1725974932666,0.014,56938.0,56937.0,0.175622]
[1725974932965,0.028,56938.0,56937.0,0.087811]
[1725974933271,0.028,56938.0,56937.0,0.182811]
[1725974934365,0.028,56938.0,56937.0,0.709691]
[1725974934572,0.028,56938.0,56937.0,0.182811]
[1725974934777,0.028,56938.0,56937.0,0.7326116]
[1725974935574,0.028,56938.0,56937.0,0.2057316]
[1725974935772,0.014,56938.0,56937.0,0.2057316]
[1725974936192,0.028,56938.0,56937.0,0.2057316]
[1725974936690,0.028,56938.0,56937.0,0.1107316]
[1725974941384,0.028,56938.0,56937.0,0.0229206]
[1725974941581,0.028,56938.0,56932.0,0.16]
[1725974941783,0.2797,56937.0,56930.0,0.02355315]
[1725974942088,0.02847353,56936.0,56924.0,0.16]
[1725974942289,0.02847353,56936.0,56927.0,0.087827]
[1725974942481,0.0284743,56935.0,56927.0,0.087827]
[1725974942687,0.54553832,56937.0,56927.0,0.087827]
[1725974942688,0.08782,56932.0,56927.0,0.087827]
[1725974943090,0.08782,56932.0,56928.0,0.087825]
[1725974943292,0.08782,56932.0,56928.0,0.247825]
[1725974943689,0.08521495,56931.0,56928.0,0.247825]
[1725974943996,0.02847429,56930.0,56929.0,0.087824]
[1725974944196,0.08782,56932.0,56929.0,0.087824]
[1725974944197,0.02847429,56931.0,56929.0,0.087824]
[1725974944491,0.02847429,56931.0,56930.0,0.087822]
[1725974944685,0.20611883,56935.0,56933.0,0.087817]
[1725974944884,0.2797,56937.0,56933.0,0.087817]
[1725974944885,0.08522845,56934.0,56933.0,0.247817]
[1725974945091,0.02847423,56934.0,56933.0,0.247817]
[1725974945292,0.05675422,56935.0,56933.0,0.247817]
[1725974945494,0.05975422,56935.0,56934.0,0.087816]
[1725974945696,0.08822845,56935.0,56934.0,0.087816]
[1725974945889,0.08822845,56935.0,56933.0,0.16]
[1725974946193,0.09522845,56934.0,56933.0,0.247818]
[1725974946999,0.08522845,56934.0,56933.0,0.247818]
[1725974947693,0.09622845,56934.0,56933.0,0.247818]
[1725974949000,0.10622845,56934.0,56933.0,0.247818]
[1725974949397,0.10622845,56934.0,56933.0,0.27481176]
[1725974950698,0.021,56934.0,56933.0,0.27481176]
[1725974954299,0.021,56934.0,56933.0,0.11481176]
[1725974954805,0.021,56934.0,56933.0,0.02699376]
[1725974955000,0.021,56934.0,56932.0,0.247819]
[1725974955191,0.021,56934.0,56932.0,0.27439904]
[1725974956200,0.02,56934.0,56932.0,0.27439904]
[1725974956907,0.02,56934.0,56933.0,0.087818]
[1725974957103,0.03,56934.0,56933.0,0.087818]
[1725974958708,0.02,56934.0,56933.0,0.087818]
[1725974958907,0.021,56934.0,56933.0,0.087818]
[1725974959509,0.087818,56933.0,56928.0,0.087825]
[1725974959714,0.08782,56932.0,56929.0,0.087823]
[1725974960011,0.08782,56932.0,56924.0,0.16]
[1725974960012,0.08782,56932.0,56930.0,0.087822]
[1725974960203,0.08782,56932.0,56928.0,0.02620387]
[1725974960397,0.1018,56933.0,56932.0,0.087819]
[1725974960713,0.1018,56933.0,56932.0,0.247819]
[1725974961012,0.021,56934.0,56933.0,0.175636]
[1725974961212,0.021,56934.0,56933.0,0.087818]
[1725974961806,0.0964,56937.0,56936.0,0.087813]
[1725974961996,0.0964,56937.0,56936.0,0.247813]
[1725974963111,0.10346984,56944.0,56941.0,0.087804]
[1725974963301,0.10346984,56944.0,56933.0,0.087816]
[1725974963302,0.1006,56945.0,56943.0,0.16]
[1725974963506,0.1006,56945.0,56943.0,0.247802]
[1725974963715,0.1006,56945.0,56944.0,0.087801]
[1725974965216,0.1146,56945.0,56944.0,0.087801]
[1725974965415,0.1286,56945.0,56944.0,0.087801]
[1725974965612,0.1286,56945.0,56944.0,0.11502303]
[1725974965911,0.087801,56944.0,56939.0,0.247808]
[1725974966113,0.12076089,56942.0,56939.0,0.247808]
[1725974966421,0.17735671,56942.0,56939.0,0.247808]
[1725974966620,0.08506383,56941.0,56939.0,0.247808]
[1725974966812,0.08506383,56940.0,56939.0,0.247808]
[1725974968106,0.24936089,56945.0,56942.0,0.087803]
[1725974968313,0.09854791,56944.0,56943.0,0.247802]
[1725974969422,0.08454791,56944.0,56943.0,0.247802]
[1725974970222,0.09854791,56944.0,56943.0,0.247802]
[1725974971617,0.11254791,56944.0,56943.0,0.247802]
[1725974971819,0.05646808,56944.0,56943.0,0.335604]
[1725974972221,0.13145803,56944.0,56943.0,0.335604]
[1725974972418,0.05646808,56944.0,56943.0,0.36304577]
[1725974972611,0.05646808,56944.0,56943.0,0.27524377]
[1725974973017,0.014,56944.0,56943.0,0.27524377]
[1725974973215,0.025,56944.0,56943.0,0.27524377]
[1725974974527,0.023,56944.0,56943.0,0.27524377]
[1725974977533,0.023,56944.0,56943.0,0.18744177]
[1725974978030,0.023,56944.0,56943.0,0.27524377]
[1725974980725,0.051467,56944.0,56943.0,0.1258943]
[1725974980920,0.023,56944.0,56943.0,0.1258943]
[1725974981123,0.1436492,56944.0,56943.0,0.1258943]
[1725974981424,0.14348202,56944.0,56943.0,0.1258943]
[1725974981624,0.10714876,56944.0,56943.0,0.1258943]
[1725974982923,0.10580046,56944.0,56943.0,0.1258943]
[1725974987729,0.023,56944.0,56943.0,0.2136963]
[1725974988226,0.10594653,56944.0,56943.0,0.3014983]
[1725974988731,0.05146538,56944.0,56943.0,0.3014983]
[1725974988931,0.023,56944.0,56943.0,0.3014983]
[1725974989128,0.023,56944.0,56943.0,1.4283383]
[1725974990235,0.023,56944.0,56943.0,1.3405363]
[1725974990537,0.023,56944.0,56943.0,0.7405363]
[1725974991535,0.023,56944.0,56943.0,0.79320537]
[1725974992821,0.023,56944.0,56943.0,0.1258943]
[1725974993222,0.023,56944.0,56943.0,0.11524377]
[1725974994327,0.110801,56944.0,56943.0,0.02744177]
[1725974994532,0.110801,56944.0,56928.0,0.10533814]
[1725974994533,0.087807,56941.0,56936.0,0.087812]
[1725974994739,0.1011,56940.0,56936.0,0.087812]
[1725974994930,0.1011,56940.0,56937.0,0.087811]
[1725974995629,0.1011,56940.0,56938.0,0.08781]
[1725974995833,0.1011,56940.0,56939.0,0.087808]
[1725974996437,0.1061,56940.0,56939.0,0.087808]
[1725974996739,0.1061,56940.0,56939.0,0.247808]
[1725974998137,0.1091,56940.0,56939.0,0.247808]
[1725974998535,0.1141,56940.0,56939.0,0.247808]
[1725974999330,0.1161,56940.0,56939.0,0.247808]
[1725975000445,0.015,56940.0,56939.0,0.087808]
[1725975000741,0.015,56940.0,56939.0,0.247808]
[1725975001130,0.015,56940.0,56938.0,0.05262622]
[1725975001434,0.015,56940.0,56936.0,0.05262689]
[1725975001637,0.015,56940.0,56933.0,0.05262689]
[1725975001839,0.102808,56940.0,56935.0,0.087813]
[1725975002133,0.087809,56939.0,56935.0,0.247813]
[1725975002441,0.087809,56939.0,56931.0,0.21262689]
[1725975002641,0.0966,56938.0,56930.0,0.14044889]
[1725975002941,0.087828,56927.0,56920.0,0.05262689]
[1725975003152,0.16,56933.0,56920.0,0.02702211]
[1725975003153,0.32749866,56926.0,56920.0,0.02702211]
[1725975003339,0.13189866,56925.0,56920.0,0.02702211]
[1725975003539,0.10342294,56924.0,56920.0,0.02702211]
[1725975003738,0.10342294,56924.0,56908.0,0.0989]
[1725975003739,0.13189866,56923.0,56914.0,0.247846]
[1725975003935,0.26342294,56921.0,56909.0,0.16]
[1725975004241,0.26342294,56921.0,56909.0,0.18722297]
[1725975004242,0.087838,56920.0,56909.0,0.18722297]
[1725975004544,0.087838,56920.0,56913.0,0.087848]
[1725975004840,0.08784,56919.0,56909.0,0.18722297]
[1725975005042,0.08784,56919.0,56909.0,0.02722297]
[1725975005342,0.08784,56919.0,56891.0,0.05262689]
[1725975005343,0.08787,56900.0,56891.0,0.05262689]
[1725975005541,0.087887,56889.0,56887.0,0.02699533]
[1725975005729,0.247887,56888.0,56885.0,0.41205327]
[1725975005933,0.1982,56899.0,56887.0,0.16]
[1725975006145,0.1982,56899.0,56895.0,0.087876]
[1725975006540,0.1982,56899.0,56893.0,0.16]
[1725975006742,0.1019,56899.0,56898.0,0.087872]
[1725975007133,0.0041,56908.0,56900.0,0.087868]
[1725975007340,0.0997,56907.0,56901.0,0.16]
[1725975007737,0.0997,56907.0,56902.0,0.087864]
[1725975008244,0.001,56899.0,56897.0,0.247873]
[1725975008445,0.001,56899.0,56890.0,0.16]
[1725975009041,0.16,56898.0,56886.0,0.18721055]
[1725975009346,0.16,56898.0,56889.0,0.087885]
[1725975010044,0.16,56898.0,56886.0,0.16]
[1725975010045,0.247872,56898.0,56886.0,0.16]
[1725975010344,0.004,56899.0,56886.0,0.08789]
[1725975010345,0.16,56895.0,56886.0,0.08789]
[1725975010644,0.286078,56894.0,56886.0,0.08789]
[1725975011234,0.16,56889.0,56880.0,0.087898]
[1725975011542,0.16,56893.0,56878.0,0.02621348]
[1725975011732,0.16,56893.0,56887.0,0.087887]
[1725975012341,0.287078,56894.0,56887.0,0.087887]
[1725975012533,0.287078,56894.0,56888.0,0.087887]
[1725975012745,0.287078,56894.0,56893.0,0.087879]
[1725975012746,0.1982,56894.0,56893.0,0.087879]
[1725975013043,0.3582,56894.0,56882.0,0.16]
[1725975013242,0.3582,56894.0,56887.0,0.087889]
[1725975013547,0.087887,56888.0,56887.0,0.003]
[1725975013749,0.087901,56880.0,56874.0,0.087909]
[1725975013945,0.615248,56888.0,56869.0,0.087916]
[1725975013946,0.16,56879.0,56869.0,0.087916]
[1725975014141,0.16,56879.0,56867.0,0.9]
[1725975014142,0.16,56871.0,56867.0,0.9]
[1725975014339,0.2634,56879.0,56867.0,0.9]
[1725975014541,0.087906,56876.0,56867.0,0.9]
[1725975014746,0.191302,56879.0,56872.0,0.247912]
[1725975015053,0.16,56876.0,56863.0,0.087925]
[1725975015237,0.52748,56878.0,56847.0,0.08795]
[1725975015238,0.087926,56863.0,56852.0,0.0041]
[1725975015442,0.52992001,56878.0,56862.0,0.087927]
[1725975015443,0.16,56868.0,56862.0,0.087927]
[1725975015743,0.247918,56868.0,56863.0,0.087926]
[1725975015944,0.0041,56874.0,56860.0,0.16]
[1725975015945,0.16,56872.0,56860.0,0.16]
[1725975016141,0.087911,56873.0,56868.0,0.087918]
[1725975016340,0.22,56874.0,56857.0,0.22]
[1725975016639,0.087923,56865.0,56849.0,0.0041]
[1725975016842,0.087925,56864.0,56849.0,0.0041]
[1725975017047,0.22,56860.0,56850.0,0.087945]
[1725975017551,0.08794,56855.0,56851.0,0.987944]
[1725975017743,0.0041,56862.0,56852.0,0.22]
[1725975017936,0.0041,56866.0,56860.0,0.22]
[1725975018141,0.0041,56870.0,56869.0,0.087916]
[1725975018349,0.087912,56872.0,56860.0,0.22]
[1725975018653,0.087912,56872.0,56866.0,0.087921]
[1725975018845,0.3227,56873.0,56861.0,0.087929]
[1725975019151,0.3268,56873.0,56855.0,0.22]
[1725975019350,0.1068,56873.0,56860.0,0.22]
[1725975019645,0.1068,56873.0,56864.0,0.087924]
[1725975019844,0.1068,56873.0,56851.0,1.1241]
[1725975019845,0.22,56867.0,56851.0,1.1241]
[1725975020050,0.087937,56857.0,56851.0,0.9]
[1725975020239,0.087918,56869.0,56851.0,0.9]
[1725975020240,0.0991,56856.0,56851.0,0.9]
[1725975020439,0.0991,56856.0,56855.0,0.087938]
[1725975020639,0.0041,56863.0,56854.0,0.22]
[1725975020844,0.0041,56866.0,56863.0,0.087926]
[1725975021050,0.087923,56865.0,56860.0,0.08793]
[1725975021350,0.0991,56867.0,56864.0,0.087924]
[1725975021545,0.0991,56867.0,56859.0,0.22]
[1725975021847,0.0991,56867.0,56866.0,0.087921]
[1725975022349,0.006,56873.0,56872.0,0.087912]
[1725975022555,0.087905,56877.0,56872.0,0.087912]
[1725975022556,0.0983,56875.0,56872.0,0.087912]
[1725975023751,0.0983,56875.0,56864.0,0.22]
[1725975024050,0.013,56873.0,56864.0,0.22]
[1725975024448,0.013,56873.0,56872.0,0.087912]
[1725975024951,0.013,56873.0,56872.0,0.307912]
[1725975025354,0.0041,56883.0,56872.0,0.00886533]
[1725975025551,0.0041,56887.0,56881.0,0.22]
[1725975025757,0.1024,56889.0,56883.0,0.087894]
[1725975025945,0.1024,56889.0,56882.0,0.9]
[1725975026147,0.3224,56889.0,56873.0,0.3152]
[1725975026353,0.087892,56886.0,56873.0,0.3152]
[1725975026550,0.3224,56889.0,56874.0,0.9]
[1725975026551,0.006,56883.0,56874.0,0.9]
[1725975027156,0.006,56883.0,56882.0,0.087896]
[1725975027858,0.006,56883.0,56874.0,0.9]
[1725975028151,0.006,56883.0,56880.0,0.22]
[1725975028345,0.006,56886.0,56882.0,0.088895]
[1725975028550,0.006,56886.0,56883.0,0.087894]
[1725975028754,0.006,56886.0,56882.0,0.001]
[1725975029441,0.011,56883.0,56882.0,0.088896]
[1725975029646,0.011,56883.0,56882.0,0.308896]
[1725975029854,0.0041,56893.0,56892.0,0.087881]
[1725975030057,0.0041,56903.0,56892.0,0.22]
[1725975030252,0.0041,56906.0,56895.0,0.22]
[1725975030447,0.22,56904.0,56888.0,0.087887]
[1725975030653,0.22,56900.0,56886.0,0.22]
[1725975030852,0.22,56900.0,56891.0,0.087882]
[1725975031046,0.22,56900.0,56892.0,0.08788]
[1725975031249,0.22,56905.0,56892.0,0.08788]
[1725975031556,0.0942,56909.0,56905.0,0.087861]
[1725975031754,0.0942,56909.0,56887.0,0.087888]
[1725975031755,0.0942,56909.0,56904.0,0.087862]
[1725975032056,0.0942,56909.0,56899.0,0.22]
[1725975032255,0.0041,56912.0,56908.0,0.087855]
[1725975032444,0.0047,56915.0,56899.0,0.22]
[1725975032445,0.087846,56915.0,56899.0,0.22]
[1725975032646,0.087846,56915.0,56895.0,0.087876]
[1725975032647,0.0985,56916.0,56904.0,0.22]
[1725975032846,0.0985,56916.0,56900.0,0.0982]
[1725975032847,0.10326181,56909.0,56900.0,0.3182]
[1725975033045,0.19111681,56909.0,56895.0,0.22]
[1725975033246,0.02848825,56908.0,56899.0,0.22]
[1725975033453,0.02848825,56908.0,56906.0,0.087858]
[1725975033651,0.02848825,56908.0,56904.0,0.22]
[1725975033849,0.02848825,56908.0,56902.0,0.087864]
[1725975034051,0.22,56907.0,56899.0,0.001]
[1725975034364,0.10326181,56903.0,56900.0,0.001]
[1725975034560,0.02848825,56902.0,56900.0,0.001]
[1725975034751,0.02848825,56902.0,56900.0,0.00041978]
[1725975034752,0.19112881,56901.0,56900.0,0.00041978]
[1725975034948,0.02848825,56901.0,56900.0,0.00041978]
[1725975035159,0.087863,56904.0,56900.0,0.00041978]
[1725975035459,0.07957231,56903.0,56900.0,0.00041978]
[1725975035659,0.10282447,56904.0,56902.0,0.087865]
[1725975035865,0.10282447,56905.0,56904.0,0.087862]
[1725975036170,0.10282447,56906.0,56905.0,0.087861]
[1725975036674,0.02848823,56906.0,56905.0,0.087861]
[1725975036850,0.10282447,56908.0,56905.0,0.22]
[1725975037170,0.10282447,56912.0,56911.0,0.087852]
[1725975037368,0.1014,56923.0,56915.0,0.087845]
[1725975037369,0.10282447,56916.0,56915.0,0.087845]
[1725975037555,0.10282447,56916.0,56915.0,0.307845]
[1725975037556,0.02848335,56916.0,56915.0,0.307845]
[1725975037755,0.10282447,56921.0,56915.0,0.22]
[1725975037954,0.10282447,56921.0,56916.0,0.087843]
[1725975038253,0.10282447,56921.0,56920.0,0.087838]
[1725975038462,0.10282447,56925.0,56920.0,0.22]
[1725975038761,0.02847956,56924.0,56923.0,0.087833]
[1725975038968,0.02847956,56924.0,56920.0,0.22]
[1725975038969,0.0284786,56924.0,56920.0,0.22]
[1725975039159,0.10282447,56928.0,56923.0,0.087832]
[1725975039357,0.02847747,56927.0,56923.0,0.087832]
[1725975039669,0.0934,56929.0,56923.0,0.087832]
[1725975039857,0.02847749,56928.0,56923.0,0.088832]
[1725975040552,0.012,56924.0,56923.0,0.088832]
[1725975040754,0.012,56924.0,56923.0,0.087832]
[1725975041154,0.012,56924.0,56923.0,0.088832]
[1725975042357,0.0041,56938.0,56928.0,0.087824]
[1725975042358,0.087813,56936.0,56928.0,0.087824]
[1725975042666,0.087813,56936.0,56924.0,0.087831]
[1725975042667,0.087822,56931.0,56924.0,0.087831]
[1725975042965,0.1024,56940.0,56925.0,0.22]
[1725975042966,0.087815,56935.0,56925.0,0.22]
[1725975043163,0.087815,56935.0,56928.0,0.087824]
[1725975043571,0.006,56935.0,56930.0,0.087821]
[1725975043760,0.006,56935.0,56930.0,0.307821]
[1725975044266,0.006,56935.0,56930.0,0.22]
[1725975044867,0.006,56935.0,56933.0,0.087817]
[1725975045265,0.006,56935.0,56930.0,0.307822]
[1725975045461,0.006,56935.0,56930.0,0.22]
[1725975045771,0.006,56935.0,56926.0,0.22]
[1725975045772,0.018,56935.0,56926.0,0.22]
[1725975045964,0.018,56935.0,56925.0,0.001]
[1725975045965,0.012,56935.0,56925.0,0.001]
[1725975046160,0.22,56929.0,56925.0,0.001]
[1725975046364,0.087823,56930.0,56922.0,0.087834]
[1725975046668,0.087823,56930.0,56917.0,0.3206]
[1725975046870,0.087824,56930.0,56923.0,0.087832]
[1725975047067,0.22,56934.0,56923.0,0.087832]
[1725975047068,0.087824,56929.0,56923.0,0.087832]
[1725975047367,0.093824,56929.0,56925.0,0.001]
[1725975047568,0.006,56929.0,56925.0,0.001]
[1725975047761,0.006,56929.0,56928.0,0.087825]
[1725975048866,0.232,56935.0,56919.0,0.22]
[1725975048867,0.087827,56927.0,56919.0,0.22]
[1725975049072,0.0976,56926.0,56925.0,0.001]
[1725975049370,0.0976,56926.0,56925.0,0.08883]
[1725975049668,0.0976,56926.0,56925.0,0.08783]
[1725975050268,0.1056,56926.0,56925.0,0.08883]
[1725975050564,0.1176,56926.0,56925.0,0.08983]
[1725975051370,0.02,56926.0,56925.0,0.17766]
[1725975051568,0.091909,56939.0,56925.0,0.08983]
[1725975051763,0.087809,56939.0,56935.0,0.22]
[1725975051970,0.087809,56939.0,56935.0,0.307813]
[1725975052179,0.087811,56938.0,56931.0,0.30782]
[1725975052368,0.087811,56938.0,56925.0,0.002]
[1725975052369,0.087818,56933.0,56926.0,0.22]
[1725975052571,0.087811,56938.0,56925.0,0.089829]
[1725975052572,0.087821,56931.0,56925.0,0.089829]
[1725975052773,0.22,56932.0,56925.0,0.002]
[1725975052972,0.087812,56937.0,56925.0,0.001]
[1725975052973,0.22,56927.0,56925.0,0.001]
[1725975053272,0.1028,56926.0,56925.0,0.08783]
[1725975053466,0.1028,56926.0,56925.0,0.08883]
[1725975054672,0.007,56933.0,56925.0,0.221]
[1725975055068,0.007,56933.0,56931.0,0.08782]
[1725975055770,0.007,56933.0,56932.0,0.087819]
[1725975056080,0.007,56933.0,56932.0,0.307819]
[1725975056276,0.1028,56935.0,56934.0,0.087816]
[1725975056473,0.02847263,56935.0,56932.0,0.16756436]
[1725975056678,0.0041,56944.0,56934.0,0.22]
[1725975056877,0.0047,56950.0,56933.0,0.52692]
[1725975056878,0.10692447,56949.0,56943.0,0.22]
[1725975057088,0.10692447,56949.0,56936.0,0.087813]
[1725975057089,0.10282447,56953.0,56949.0,0.087793]
[1725975057380,0.02846536,56952.0,56945.0,0.087798]
[1725975057578,0.02846536,56951.0,56944.0,0.22]
[1725975057773,0.10282447,56953.0,56944.0,0.22]
[1725975057774,0.02846536,56950.0,56944.0,0.22]
[1725975058079,0.10282447,56950.0,56945.0,0.087799]
[1725975058373,0.11625531,56952.0,56945.0,0.087799]
[1725975058374,0.02846531,56949.0,56945.0,0.087799]
[1725975058581,0.19061447,56952.0,56945.0,0.087799]
[1725975058582,0.02846607,56948.0,56945.0,0.087799]
[1725975058771,0.02846607,56948.0,56941.0,0.22]
[1725975058772,0.02846607,56947.0,56941.0,0.22]
[1725975058972,0.10282447,56950.0,56941.0,0.22]
[1725975059281,0.1312908,56950.0,56943.0,0.001]
[1725975059472,0.10282447,56948.0,56947.0,0.087796]
[1725975059682,0.02846633,56948.0,56947.0,0.087796]
[1725975060379,0.10282447,56951.0,56947.0,0.087796]
[1725975060576,0.10282447,56948.0,56947.0,0.087796]
[1725975060883,0.10298447,56948.0,56947.0,0.087796]
[1725975061071,0.10298447,56952.0,56951.0,0.08779]
[1725975061273,0.10298447,56955.0,56951.0,0.22]
[1725975061477,0.10299899,56955.0,56954.0,0.22]
[1725975061684,0.02846142,56955.0,56954.0,0.22]
[1725975061881,0.10299899,56956.0,56955.0,0.087784]
[1725975062080,0.02846142,56956.0,56955.0,0.087784]
[1725975062281,0.10305061,56956.0,56955.0,0.087784]
[1725975062486,0.02846142,56956.0,56955.0,0.087784]
[1725975062978,0.001,56955.0,56954.0,0.308785]
[1725975063775,0.0952,56964.0,56959.0,0.087777]
[1725975063977,0.02846134,56963.0,56961.0,0.087774]
[1725975064179,0.0952,56964.0,56961.0,0.087774]
[1725975064582,0.0952,56964.0,56962.0,0.087772]
[1725975064785,0.0952,56964.0,56963.0,0.307771]
[1725975064986,0.087771,56963.0,56957.0,0.08778]
[1725975065188,0.087771,56963.0,56955.0,0.221]
[1725975065485,0.0952,56964.0,56961.0,0.001]
[1725975066085,0.0952,56964.0,56963.0,0.087771]
[1725975066689,0.0952,56964.0,56959.0,0.22]
[1725975066986,0.0952,56964.0,56963.0,0.307771]
[1725975067488,0.0952,56964.0,56963.0,0.087771]
[1725975067986,0.10715061,56974.0,56963.0,0.087771]
[1725975067987,0.10715061,56974.0,56963.0,0.22]
[1725975068179,0.10715061,56974.0,56961.0,0.001]
[1725975068180,0.087755,56974.0,56971.0,0.087758]
[1725975068378,0.087755,56974.0,56968.0,0.22]
[1725975068379,0.0942,56976.0,56975.0,0.087753]
[1725975068578,0.0942,56976.0,56973.0,0.22]
[1725975068579,0.10305061,56983.0,56982.0,0.087742]
[1725975068885,0.24845278,56983.0,56963.0,0.002]
[1725975069089,0.22,56967.0,56963.0,0.002]
[1725975069286,0.22,56967.0,56943.0,0.0041]
[1725975069287,0.1909,56966.0,56943.0,0.0041]
[1725975069596,0.22,56953.0,56939.0,0.087807]
[1725975069778,0.22,56953.0,56935.0,0.22]
[1725975069779,0.087796,56947.0,56935.0,0.22]
[1725975070085,0.087796,56947.0,56939.0,0.087808]
[1725975070288,0.087798,56946.0,56939.0,0.087808]
[1725975070686,0.22,56953.0,56940.0,0.087807]
[1725975070893,0.087792,56950.0,56935.0,0.22]
[1725975071086,0.087795,56948.0,56941.0,0.087804]
[1725975071590,0.087795,56948.0,56942.0,0.087804]
[1725975071787,0.201121,56951.0,56930.0,0.03112947]
[1725975071788,0.0982,56951.0,56947.0,0.087796]
[1725975072181,0.18599,56951.0,56942.0,0.087804]
[1725975072384,0.18599,56951.0,56941.0,0.001]
[1725975072385,0.087798,56946.0,56941.0,0.001]
[1725975072591,0.0976,56950.0,56941.0,0.001]
[1725975072784,0.002,56948.0,56942.0,0.088803]
[1725975072984,0.087796,56947.0,56943.0,0.087802]
[1725975073495,0.0976,56950.0,56944.0,0.0878]
[1725975073700,0.002,56946.0,56944.0,0.0878]
[1725975073893,0.002,56946.0,56941.0,0.001]
[1725975074198,0.002,56946.0,56935.0,0.22]
[1725975074491,0.22,56939.0,56922.0,0.22]
[1725975074704,0.087817,56934.0,56922.0,0.22]
[1725975074905,0.087817,56934.0,56917.0,0.22]
[1725975075113,0.22,56930.0,56916.0,0.1932]
[1725975075307,0.12657542,56933.0,56908.0,0.22]
[1725975075308,0.22,56925.0,56908.0,0.22]
[1725975075492,0.087821,56932.0,56903.0,0.0041]
[1725975075493,0.22,56920.0,56907.0,0.087857]
[1725975075691,0.22,56916.0,56907.0,0.087857]
[1725975076300,0.22,56916.0,56908.0,0.087856]
[1725975076499,0.22,56921.0,56903.0,0.22]
[1725975076700,0.087846,56915.0,56909.0,0.087855]
[1725975077104,0.087847,56914.0,56909.0,0.087855]
[1725975077697,0.087847,56914.0,56910.0,0.087853]
[1725975078206,0.087847,56914.0,56907.0,0.014]
[1725975078207,0.087841,56918.0,56912.0,0.087849]
[1725975078406,0.001,56914.0,56912.0,0.087849]
[1725975078707,0.001,56914.0,56909.0,0.012]
[1725975078708,0.001,56914.0,56913.0,0.087848]
[1725975079110,0.001,56914.0,56910.0,0.012]
[1725975079406,0.001,56914.0,56913.0,0.087848]
[1725975080106,0.0041,56925.0,56913.0,0.52712]
[1725975080299,0.087829,56926.0,56917.0,0.087842]
[1725975080499,0.087831,56925.0,56917.0,0.087842]
[1725975080699,0.087831,56925.0,56918.0,0.087841]
[1725975080895,0.087831,56925.0,56919.0,0.087838]
[1725975081605,0.087834,56923.0,56913.0,0.907]